[Event "NJSK 2021 Jeugd C"]
[Site "Almelo, Netherlands"]
[Date "2021.08.05"]
[Round "7.12"]
[White "Ekker, Joshua"]
[Black "Sazonov, Fedor"]
[Result "0-1"]
[TimeControl "90min + 30sec/move"]
[WhiteElo "1695"]
[BlackElo "1650"]

1. e4 {[%clk 01:30:58]} {[%emt 00:00:01]} c5 {[%clk 01:30:58]} {[%emt
00:00:03]} 2. Nf3 {[%clk 01:31:23]} {[%emt 00:00:05]} d6 {[%clk 01:31:24]}
{[%emt 00:00:04]} 3. d4 {[%clk 01:31:47]} {[%emt 00:00:05]} cxd4 {[%clk
01:31:52]} {[%emt 00:00:03]} 4. Nxd4 {[%clk 01:32:10]} {[%emt 00:00:06]} Nf6
{[%clk 01:32:20]} {[%emt 00:00:04]} 5. Nc3 {[%clk 01:32:30]} {[%emt 00:00:09]}
g6 {[%clk 01:32:42]} {[%emt 00:00:08]} 6. Be3 {[%clk 01:32:53]} {[%emt
00:00:06]} Bg7 {[%clk 01:33:05]} {[%emt 00:00:08]} 7. f3 {[%clk 01:33:16]}
{[%emt 00:00:07]} O-O {[%clk 01:33:28]} {[%emt 00:00:08]} 8. Bc4 {[%clk
01:33:34]} {[%emt 00:00:12]} Nc6 {[%clk 01:33:35]} {[%emt 00:00:23]} 9. Qd2
{[%clk 01:33:46]} {[%emt 00:00:18]} Bd7 {[%clk 01:33:50]} {[%emt 00:00:15]} 10.
O-O-O {[%clk 01:34:06]} {[%emt 00:00:10]} Rc8 {[%clk 01:33:50]} {[%emt
00:00:30]} 11. Bb3 {[%clk 01:34:29]} {[%emt 00:00:07]} Nxd4 {[%clk 01:33:10]}
{[%emt 00:01:11]} 12. Bxd4 {[%clk 01:33:20]} {[%emt 00:01:38]} a5 {[%clk
01:31:53]} {[%emt 00:01:47]} 13. g4 {[%clk 01:23:41]} {[%emt 00:10:09]} b5
{[%clk 01:25:16]} {[%emt 00:07:06]} 14. a3 {[%clk 01:23:14]} {[%emt 00:00:59]}
b4 {[%clk 01:18:38]} {[%emt 00:07:07]} 15. axb4 {[%clk 01:20:46]} {[%emt
00:02:57]} axb4 {[%clk 01:17:58]} {[%emt 00:01:11]} 16. Na2 {[%clk 01:19:16]}
{[%emt 00:02:00]} Be6 {[%clk 01:13:49]} {[%emt 00:04:38]} 17. Bxe6 {[%clk
01:08:21]} {[%emt 00:11:25]} fxe6 {[%clk 01:14:06]} {[%emt 00:00:13]} 18. Nxb4
{[%clk 00:56:30]} {[%emt 00:12:21]} Qa5 {[%clk 01:11:40]} {[%emt 00:02:56]} 19.
b3 {[%clk 00:54:19]} {[%emt 00:02:41]} Ra8 {[%clk 01:04:35]} {[%emt 00:07:36]}
20. Bb2 {[%clk 00:39:08]} {[%emt 00:15:41]} Nxe4 {[%clk 01:02:44]} {[%emt
00:02:22]} 21. fxe4 {[%clk 00:37:50]} {[%emt 00:01:47]} Qa1+ {[%clk 01:01:22]}
{[%emt 00:01:52]} 0-1

[Event "NJSK 2021 Jeugd C"]
[Site "Almelo, Netherlands"]
[Date "2021.08.06"]
[Round "8.1"]
[White "Zecha, Oscar"]
[Black "De Winter, Arthur"]
[Result "0-1"]
[TimeControl "90min + 30sec/move"]
[WhiteElo "1650"]
[BlackElo "2000"]

1. d4 {[%clk 01:30:58]} {[%emt 00:00:02]} Nf6 {[%clk 01:30:57]} {[%emt
00:00:04]} 2. c4 {[%clk 01:31:23]} {[%emt 00:00:04]} g6 {[%clk 01:31:22]}
{[%emt 00:00:05]} 3. g3 {[%clk 01:31:51]} {[%emt 00:00:03]} Bg7 {[%clk
01:31:45]} {[%emt 00:00:06]} 4. Bg2 {[%clk 01:32:13]} {[%emt 00:00:08]} O-O
{[%clk 01:32:10]} {[%emt 00:00:05]} 5. Nc3 {[%clk 01:32:40]} {[%emt 00:00:04]}
d6 {[%clk 01:32:32]} {[%emt 00:00:07]} 6. Nf3 {[%clk 01:33:08]} {[%emt
00:00:03]} Nbd7 {[%clk 01:32:30]} {[%emt 00:00:32]} 7. O-O {[%clk 01:33:26]}
{[%emt 00:00:12]} e5 {[%clk 01:32:54]} {[%emt 00:00:05]} 8. e4 {[%clk
01:33:52]} {[%emt 00:00:05]} exd4 {[%clk 01:33:01]} {[%emt 00:00:22]} 9. Nxd4
{[%clk 01:34:12]} {[%emt 00:00:11]} Re8 {[%clk 01:32:58]} {[%emt 00:00:32]} 10.
Bf4 {[%clk 01:33:38]} {[%emt 00:01:04]} Nc5 {[%clk 01:30:11]} {[%emt 00:03:17]}
11. Re1 {[%clk 01:31:16]} {[%emt 00:02:51]} Ne6 {[%emt 00:09:17]} 12. Be3
{[%clk 01:27:01]} {[%emt 00:02:24]} Nxd4 {[%clk 01:23:11]} {[%emt 00:01:04]} 13.
Bxd4 {[%clk 01:27:02]} {[%emt 00:00:30]} Be6 {[%clk 01:23:31]} {[%emt
00:00:10]} 14. c5 {[%clk 01:14:42]} {[%emt 00:12:50]} dxc5 {[%clk 01:20:55]}
{[%emt 00:03:05]} 15. Bxc5 {[%clk 01:14:17]} {[%emt 00:00:54]} Nd7 {[%clk
01:11:23]} {[%emt 00:10:03]} 16. Be3 {[%clk 00:55:48]} {[%emt 00:19:00]} Ne5
{[%clk 01:09:45]} {[%emt 00:02:07]} 17. Bf4 {[%clk 00:51:44]} {[%emt 00:04:34]}
c6 {[%clk 01:04:34]} {[%emt 00:05:41]} 18. Qc2 {[%clk 00:49:12]} {[%emt
00:03:03]} Qd3 {[%clk 01:02:37]} {[%emt 00:02:27]} 19. Qe2 {[%clk 00:33:21]}
{[%emt 00:16:21]} Bg4 {[%clk 00:58:32]} {[%emt 00:04:34]} 20. Qe3 {[%clk
00:33:36]} {[%emt 00:00:16]} Qxe3 {[%clk 00:58:01]} {[%emt 00:01:01]} 21. Rxe3
{[%clk 00:33:17]} {[%emt 00:00:48]} Nc4 {[%clk 00:58:09]} {[%emt 00:00:22]} 22.
Ree1 {[%clk 00:31:11]} {[%emt 00:02:37]} Nxb2 {[%clk 00:57:55]} {[%emt
00:00:44]} 23. Rec1 {[%clk 00:28:32]} {[%emt 00:03:09]} Rad8 {[%clk 00:48:32]}
{[%emt 00:09:52]} 24. h3 {[%clk 00:24:00]} {[%emt 00:05:03]} Be6 {[%clk
00:48:27]} {[%emt 00:00:34]} 25. Rab1 {[%clk 00:16:12]} {[%emt 00:08:19]} Nd3
{[%clk 00:48:32]} {[%emt 00:00:24]} 26. Rc2 {[%clk 00:16:26]} {[%emt 00:00:17]}
b6 {[%clk 00:46:44]} {[%emt 00:02:18]} 27. a4 {[%emt 00:02:30]} Rd4 {[%clk
00:41:04]} {[%emt 00:06:09]} 28. Be3 {[%clk 00:12:34]} {[%emt 00:02:23]} Rc4
{[%clk 00:41:15]} {[%emt 00:00:18]} 29. Bf1 {[%clk 00:11:36]} {[%emt 00:01:29]}
Rxc3 {[%clk 00:39:22]} {[%emt 00:02:23]} 30. Rxc3 {[%clk 00:12:00]} {[%emt
00:00:05]} Bxc3 {[%clk 00:39:49]} {[%emt 00:00:03]} 31. Bxd3 {[%clk 00:12:28]}
{[%emt 00:00:02]} Rd8 {[%clk 00:39:28]} {[%emt 00:00:51]} 32. Bf1 {[%clk
00:12:09]} {[%emt 00:00:50]} c5 {[%clk 00:38:54]} {[%emt 00:01:03]} 33. Kh2
{[%clk 00:10:46]} {[%emt 00:01:53]} Kf8 {[%clk 00:37:57]} {[%emt 00:01:27]} 34.
Bb5 {[%clk 00:09:37]} {[%emt 00:01:40]} Ke7 {[%clk 00:37:50]} {[%emt 00:00:37]}
35. Kg2 {[%clk 00:08:24]} {[%emt 00:01:43]} Bd2 {[%clk 00:37:18]} {[%emt
00:01:02]} 36. Bxd2 {[%clk 00:07:24]} {[%emt 00:01:29]} Rxd2 {[%clk 00:37:44]}
{[%emt 00:00:04]} 37. Rc1 {[%clk 00:06:28]} {[%emt 00:01:27]} Kf6 {[%clk
00:36:31]} {[%emt 00:01:43]} 38. h4 {[%clk 00:05:35]} {[%emt 00:01:23]} Ke5
{[%clk 00:36:33]} {[%emt 00:00:28]} 39. Kf3 {[%clk 00:05:20]} {[%emt 00:00:45]}
Kd4 {[%clk 00:36:49]} {[%emt 00:00:13]} 40. Kg2 {[%clk 00:03:40]} {[%emt
00:02:11]} c4 {[%clk 00:36:42]} {[%emt 00:00:37]} 41. Kf1 {[%clk 00:03:51]}
{[%emt 00:00:18]} c3 {[%clk 00:36:56]} {[%emt 00:00:17]} 42. Ke1 {[%clk
00:04:05]} {[%emt 00:00:15]} Bc4 {[%clk 00:37:14]} {[%emt 00:00:13]} 43. Bc6
{[%clk 00:03:36]} {[%emt 00:00:59]} Re2+ {[%clk 00:37:34]} {[%emt 00:00:09]} 44.
Kd1 {[%clk 00:03:52]} {[%emt 00:00:15]} Rxf2 {[%clk 00:37:58]} {[%emt
00:00:05]} 45. a5 {[%clk 00:03:15]} {[%emt 00:01:08]} Rf1+ {[%clk 00:38:09]}
{[%emt 00:00:19]} 46. Kc2 {[%clk 00:03:39]} {[%emt 00:00:06]} Bd3+ {[%clk
00:38:35]} {[%emt 00:00:03]} 47. Kb3 {[%clk 00:04:04]} {[%emt 00:00:06]} Rxc1
{[%clk 00:39:02]} {[%emt 00:00:03]} 48. axb6 {[%clk 00:04:24]} {[%emt
00:00:10]} Rb1+ {[%clk 00:39:27]} {[%emt 00:00:05]} 49. Ka4 {[%clk 00:04:46]}
{[%emt 00:00:09]} Rxb6 {[%clk 00:39:50]} {[%emt 00:00:06]} 50. Bd5 {[%clk
00:04:57]} {[%emt 00:00:18]} c2 {[%clk 00:40:17]} {[%emt 00:00:03]} 51. h5
{[%clk 00:05:17]} {[%emt 00:00:10]} c1=Q {[%clk 00:40:41]} {[%emt 00:00:06]} 52.
Ba2 {[%clk 00:05:18]} {[%emt 00:00:28]} Qb2 {[%clk 00:41:03]} {[%emt 00:00:09]}
53. hxg6 {[%clk 00:05:32]} {[%emt 00:00:18]} Qb4# {[%clk 00:40:57]} 0-1

[Event "NJSK 2021 Jeugd C"]
[Site "Almelo, Netherlands"]
[Date "2021.08.06"]
[Round "8.2"]
[White "Kumar, Prajit Sai"]
[Black "Kurt, Sascha"]
[Result "1-0"]
[TimeControl "90min + 30sec/move"]
[WhiteElo "1811"]
[BlackElo "1650"]

1. d4 {[%clk 01:30:59]} {[%emt 00:00:01]} Nf6 {[%clk 01:30:55]} {[%emt
00:00:05]} 2. c4 {[%clk 01:31:24]} {[%emt 00:00:05]} g6 {[%clk 01:31:19]}
{[%emt 00:00:06]} 3. Nc3 {[%clk 01:31:51]} {[%emt 00:00:03]} Bg7 {[%clk
01:31:43]} {[%emt 00:00:05]} 4. e4 {[%clk 01:32:14]} {[%emt 00:00:07]} d6
{[%clk 01:32:10]} {[%emt 00:00:04]} 5. Nf3 {[%clk 01:32:39]} {[%emt 00:00:05]}
O-O {[%clk 01:32:32]} {[%emt 00:00:06]} 6. h3 {[%clk 01:33:05]} {[%emt
00:00:05]} e5 {[%clk 01:32:55]} {[%emt 00:00:07]} 7. d5 {[%clk 01:33:31]}
{[%emt 00:00:04]} a5 {[%clk 01:33:22]} {[%emt 00:00:04]} 8. g4 {[%clk
01:33:51]} {[%emt 00:00:09]} Na6 {[%clk 01:33:47]} {[%emt 00:00:05]} 9. Be3
{[%clk 01:34:17]} {[%emt 00:00:04]} Nd7 {[%clk 01:34:10]} {[%emt 00:00:08]} 10.
a3 {[%clk 01:34:40]} {[%emt 00:00:07]} Nb6 {[%clk 01:34:00]} {[%emt 00:00:40]}
11. Rg1 {[%clk 01:34:26]} {[%emt 00:00:43]} Bd7 {[%clk 01:34:10]} {[%emt
00:00:20]} 12. h4 {[%clk 01:33:19]} {[%emt 00:01:37]} Nc5 {[%clk 01:34:19]}
{[%emt 00:00:21]} 13. b3 {[%clk 01:31:51]} {[%emt 00:01:58]} Bf6 {[%clk
01:31:17]} {[%emt 00:03:32]} 14. g5 {[%clk 01:28:29]} {[%emt 00:03:52]} Bg7
{[%clk 01:31:02]} {[%emt 00:00:45]} 15. h5 {[%clk 01:27:16]} {[%emt 00:01:43]}
a4 {[%clk 01:26:37]} {[%emt 00:04:55]} 16. b4 {[%clk 01:26:42]} {[%emt
00:01:04]} Nb3 {[%clk 01:26:51]} {[%emt 00:00:17]} 17. Rb1 {[%clk 01:26:49]}
{[%emt 00:00:22]} Qe7 {[%clk 01:23:46]} {[%emt 00:03:36]} 18. Be2 {[%clk
01:13:55]} {[%emt 00:13:24]} Nc8 {[%clk 01:14:11]} {[%emt 00:10:04]} 19. Nd2
{[%clk 01:10:14]} {[%emt 00:04:10]} Nd4 {[%clk 01:12:45]} {[%emt 00:01:57]} 20.
Bg4 {[%clk 01:07:40]} {[%emt 00:03:04]} Nb6 {[%clk 01:06:46]} {[%emt 00:06:30]}
21. Bxd7 {[%clk 01:02:53]} {[%emt 00:05:16]} Qxd7 {[%clk 01:06:15]} {[%emt
00:01:02]} 22. c5 {[%clk 00:57:32]} {[%emt 00:05:50]} Nc8 {[%clk 01:05:04]}
{[%emt 00:01:41]} 23. Nf3 {[%clk 00:48:58]} {[%emt 00:09:03]} Nxf3+ {[%clk
01:03:01]} {[%emt 00:02:34]} 24. Qxf3 {[%clk 00:49:22]} {[%emt 00:00:06]} f5
{[%clk 00:59:52]} {[%emt 00:03:39]} 25. hxg6 {[%clk 00:46:16]} {[%emt
00:03:35]} hxg6 {[%clk 01:00:11]} {[%emt 00:00:12]} 26. Qh3 {[%clk 00:45:49]}
{[%emt 00:00:57]} Kf7 {[%clk 00:58:50]} {[%emt 00:01:52]} 27. exf5 {[%clk
00:29:56]} {[%emt 00:16:23]} Qxf5 {[%clk 00:59:02]} {[%emt 00:00:18]} 28. Qxf5+
{[%clk 00:30:09]} {[%emt 00:00:16]} gxf5 {[%clk 00:59:25]} {[%emt 00:00:06]} 29.
Nb5 {[%clk 00:29:56]} {[%emt 00:00:44]} c6 {[%clk 00:57:59]} {[%emt 00:01:57]}
30. dxc6 {[%clk 00:28:58]} {[%emt 00:01:27]} bxc6 {[%clk 00:58:15]} {[%emt
00:00:14]} 31. Nxd6+ {[%clk 00:29:10]} {[%emt 00:00:18]} Nxd6 {[%clk 00:57:57]}
{[%emt 00:00:49]} 32. cxd6 {[%clk 00:28:34]} {[%emt 00:01:05]} Rfd8 {[%clk
00:57:55]} {[%emt 00:00:32]} 33. g6+ {[%clk 00:25:24]} {[%emt 00:03:40]} Kg8
{[%clk 00:57:35]} {[%emt 00:00:50]} 34. Rd1 {[%clk 00:22:44]} {[%emt 00:03:10]}
Bf8 {[%clk 00:57:07]} {[%emt 00:00:59]} 35. d7 {[%clk 00:22:38]} {[%emt
00:00:35]} Bg7 {[%clk 00:44:59]} {[%emt 00:12:38]} 36. Bb6 {[%clk 00:21:49]}
{[%emt 00:01:19]} e4 {[%clk 00:44:47]} {[%emt 00:00:43]} 37. Bxd8 {[%clk
00:22:10]} {[%emt 00:00:08]} Rxd8 {[%clk 00:44:57]} {[%emt 00:00:20]} 38. Rg5
{[%clk 00:20:33]} {[%emt 00:02:07]} Bb2 {[%clk 00:44:44]} {[%emt 00:00:44]} 39.
Rxf5 {[%clk 00:20:36]} {[%emt 00:00:26]} Bxa3 {[%clk 00:44:52]} {[%emt
00:00:22]} 40. Re5 {[%clk 00:20:11]} {[%emt 00:00:55]} Bxb4+ {[%clk 00:44:50]}
{[%emt 00:00:32]} 41. Ke2 {[%clk 00:20:24]} {[%emt 00:00:17]} Kg7 {[%clk
00:44:25]} {[%emt 00:00:55]} 42. Rxe4 {[%clk 00:20:16]} {[%emt 00:00:39]} c5
{[%clk 00:44:24]} {[%emt 00:00:30]} 43. Re6 {[%clk 00:19:17]} {[%emt 00:01:27]}
a3 {[%clk 00:44:16]} {[%emt 00:00:39]} 44. Rh1 {[%clk 00:19:07]} {[%emt
00:00:40]} a2 {[%clk 00:42:59]} {[%emt 00:01:48]} 45. Rh7+ {[%clk 00:19:31]}
{[%emt 00:00:06]} Kf8 {[%clk 00:43:16]} {[%emt 00:00:12]} 46. Rf7+ {[%clk
00:19:46]} {[%emt 00:00:15]} Kg8 {[%clk 00:43:35]} {[%emt 00:00:12]} 47. Re8+
{[%clk 00:20:12]} {[%emt 00:00:04]} 1-0

[Event "NJSK 2021 Jeugd C"]
[Site "Almelo, Netherlands"]
[Date "2021.08.06"]
[Round "8.3"]
[White "Bakija, Alan"]
[Black "Labruyere, Roger"]
[Result "0-1"]
[TimeControl "90min + 30sec/move"]
[WhiteElo "1870"]
[BlackElo "2003"]

1. c4 {[%clk 01:30:57]} {[%emt 00:00:02]} e5 {[%clk 01:30:57]} {[%emt
00:00:03]} 2. Nc3 {[%clk 01:31:24]} {[%emt 00:00:04]} Nf6 {[%clk 01:31:25]}
{[%emt 00:00:02]} 3. Nf3 {[%clk 01:31:49]} {[%emt 00:00:04]} Nc6 {[%clk
01:31:52]} {[%emt 00:00:03]} 4. e3 {[%clk 01:32:14]} {[%emt 00:00:05]} d5
{[%clk 01:32:17]} {[%emt 00:00:05]} 5. cxd5 {[%clk 01:32:34]} {[%emt 00:00:10]}
Nxd5 {[%clk 01:32:42]} {[%emt 00:00:05]} 6. Bb5 {[%clk 01:32:57]} {[%emt
00:00:08]} Nxc3 {[%clk 01:32:54]} {[%emt 00:00:18]} 7. bxc3 {[%clk 01:33:21]}
{[%emt 00:00:05]} Bd6 {[%clk 01:33:20]} {[%emt 00:00:05]} 8. d4 {[%clk
01:33:38]} {[%emt 00:00:13]} exd4 {[%clk 01:33:40]} {[%emt 00:00:09]} 9. cxd4
{[%clk 01:34:02]} {[%emt 00:00:06]} O-O {[%clk 01:34:02]} {[%emt 00:00:08]} 10.
O-O {[%clk 01:34:25]} {[%emt 00:00:07]} Bg4 {[%clk 01:34:01]} {[%emt 00:00:31]}
11. h3 {[%clk 01:34:52]} {[%emt 00:00:04]} Bh5 {[%clk 01:34:26]} {[%emt
00:00:05]} 12. Bb2 {[%clk 01:35:18]} {[%emt 00:00:04]} Ne7 {[%clk 01:34:12]}
{[%emt 00:00:44]} 13. Rc1 {[%clk 01:34:36]} {[%emt 00:01:11]} c6 {[%clk
01:34:34]} {[%emt 00:00:08]} 14. Be2 {[%clk 01:35:02]} {[%emt 00:00:04]} Bg6
{[%clk 01:33:21]} {[%emt 00:01:43]} 15. Nh4 {[%clk 01:31:27]} {[%emt 00:04:05]}
Be4 {[%clk 01:31:35]} {[%emt 00:02:13]} 16. Bf3 {[%clk 01:30:58]} {[%emt
00:01:02]} f5 {[%clk 01:28:14]} {[%emt 00:03:51]} 17. Bxe4 {[%clk 01:26:59]}
{[%emt 00:04:30]} fxe4 {[%clk 01:26:34]} {[%emt 00:02:10]} 18. Qg4 {[%clk
01:26:38]} {[%emt 00:00:50]} Nd5 {[%clk 01:20:51]} {[%emt 00:06:14]} 19. Nf5
{[%clk 01:22:36]} {[%emt 00:04:31]} Rxf5 {[%clk 01:20:53]} {[%emt 00:00:28]} 20.
Qxf5 {[%clk 01:22:58]} {[%emt 00:00:09]} Qe7 {[%clk 01:21:18]} {[%emt
00:00:05]} 21. Rb1 {[%clk 01:05:13]} {[%emt 00:18:14]} Rf8 {[%clk 01:21:12]}
{[%emt 00:00:36]} 22. Qg4 {[%clk 01:05:36]} {[%emt 00:00:07]} Bb8 {[%clk
00:44:01]} {[%emt 00:37:40]} 23. Bc1 {[%clk 00:35:32]} {[%emt 00:30:35]} Nf6
{[%clk 00:35:07]} {[%emt 00:09:24]} 24. Qe2 {[%clk 00:33:08]} {[%emt 00:02:53]}
Qc7 {[%clk 00:33:29]} {[%emt 00:02:08]} 25. f4 {[%clk 00:33:15]} {[%emt
00:00:24]} exf3 {[%clk 00:32:40]} {[%emt 00:01:19]} 26. gxf3 {[%clk 00:33:33]}
{[%emt 00:00:12]} Qd7 {[%clk 00:25:10]} {[%emt 00:08:01]} 27. Qg2 {[%clk
00:29:12]} {[%emt 00:04:51]} Nh5 {[%clk 00:25:08]} {[%emt 00:00:31]} 28. f4
{[%clk 00:23:16]} {[%emt 00:06:27]} Rf6 {[%clk 00:24:49]} {[%emt 00:00:48]} 29.
Kh2 {[%clk 00:18:34]} {[%emt 00:05:12]} Rg6 {[%clk 00:20:07]} {[%emt 00:05:12]}
30. Qf3 {[%clk 00:18:38]} {[%emt 00:00:25]} Qf7 {[%clk 00:19:48]} {[%emt
00:00:48]} 31. Rg1 {[%clk 00:11:07]} {[%emt 00:08:02]} Rxg1 {[%clk 00:19:47]}
{[%emt 00:00:31]} 32. Kxg1 {[%clk 00:11:31]} {[%emt 00:00:07]} Qg6+ {[%clk
00:20:13]} {[%emt 00:00:04]} 33. Kh2 {[%clk 00:05:53]} {[%emt 00:06:08]} Qxb1
{[%clk 00:19:02]} {[%emt 00:01:42]} 34. Qxh5 {[%clk 00:06:15]} {[%emt
00:00:07]} Qxa2+ {[%clk 00:14:49]} {[%emt 00:04:43]} 35. Kg3 {[%clk 00:04:27]}
{[%emt 00:02:18]} Qf7 {[%clk 00:13:05]} {[%emt 00:02:13]} 36. Qg5 {[%clk
00:02:17]} {[%emt 00:02:39]} Qg6 {[%clk 00:12:12]} {[%emt 00:01:25]} 37. Qxg6
{[%clk 00:02:42]} {[%emt 00:00:05]} hxg6 {[%clk 00:12:40]} {[%emt 00:00:01]} 38.
Kg4 {[%clk 00:02:44]} {[%emt 00:00:29]} b5 {[%clk 00:12:50]} {[%emt 00:00:21]}
39. Kg5 {[%clk 00:01:39]} {[%emt 00:01:35]} Kf7 {[%clk 00:11:54]} {[%emt
00:01:25]} 40. e4 {[%clk 00:01:42]} {[%emt 00:00:27]} a5 {[%clk 00:11:26]}
{[%emt 00:00:59]} 41. e5 {[%clk 00:01:51]} {[%emt 00:00:20]} Ba7 {[%clk
00:10:50]} {[%emt 00:01:07]} 42. Bb2 {[%clk 00:01:55]} {[%emt 00:00:25]} b4
{[%clk 00:11:10]} {[%emt 00:00:09]} 43. e6+ {[%clk 00:01:15]} {[%emt 00:01:11]}
Kxe6 {[%clk 00:11:22]} {[%emt 00:00:18]} 44. Kxg6 {[%clk 00:01:39]} {[%emt
00:00:06]} a4 {[%clk 00:08:57]} {[%emt 00:02:55]} 45. f5+ {[%clk 00:01:35]}
{[%emt 00:00:33]} Kd5 {[%clk 00:08:42]} {[%emt 00:00:46]} 46. Kxg7 {[%clk
00:01:24]} {[%emt 00:00:42]} a3 {[%clk 00:08:58]} {[%emt 00:00:14]} 47. Bc1
{[%clk 00:00:39]} {[%emt 00:01:14]} Bxd4+ {[%clk 00:09:22]} {[%emt 00:00:06]}
48. f6 {[%clk 00:01:04]} {[%emt 00:00:05]} a2 {[%emt 00:01:53]} 0-1